{"text_format":"1","workbook":"xlsx","n_sheets":5,"sheets":["事件","事件メモ","オプション","フォルダ","マニュアル"],"not_rendered":{"charts":0,"images":1,"macros":1,"external_links":0,"defined_names":139,"comments":0,"pivot_tables":0},"unopened":[],"bounds":{"document_bytes":16777216,"sheet_cells":100000,"rows_first":2000,"rows_last":500,"rows_between":2000,"halvings":0,"cell_chars":16384,"cell_head_chars":4096},"cells_cut":0,"cells_raw":0,"read":"whole","date_system":"1900"}

{"sheet":"事件","index":0,"n_rows":1,"n_cols":32,"rows_kept":1,"cut":false,"hidden":false,"merged":[]}
["事件番号","現況","事件呼名","依頼者氏名","ふりがな","生年月日","住所","電話番号","メールアドレス","相談内容","相談年月日","相談弁護士","関係者","相手方氏名","相手方ふりがな","相手方住所","相手方電話番号","受任区分","事件区分","担当区分","データフォルダ","TeamsURL","終了年月日","代理人","代理人住所","代理人電話番号","代理人FAX番号","裁判所名","裁判所事件番号","事件名","依頼人立場","備考"]

{"sheet":"事件メモ","index":1,"n_rows":115,"n_cols":7,"rows_kept":115,"cut":false,"hidden":false,"merged":[[111,1,111,2],[111,6,111,8],[108,1,108,2],[108,6,108,8],[109,1,109,2],[109,6,109,8],[110,1,110,2],[110,6,110,8],[105,1,105,2],[105,6,105,8],[106,1,106,2],[106,6,106,8],[107,1,107,2],[107,6,107,8],[101,6,101,8],[102,1,102,2],[102,6,102,8],[103,1,103,2],[103,6,103,8],[104,1,104,2],[104,6,104,8],[97,2,97,4],[97,6,97,8],[98,2,98,4],[98,6,98,8],[100,1,100,2],[100,6,100,8],[94,2,94,4],[94,6,94,8],[95,2,95,4],[95,6,95,8],[96,1,96,4],[96,5,96,8],[91,1,91,4],[91,5,91,8],[92,2,92,4],[92,6,92,8],[93,2,93,4],[93,6,93,8],[84,0,98,0],[84,2,84,4],[84,6,84,8],[85,2,85,4],[85,6,85,8],[86,1,86,4],[86,5,86,8],[87,2,87,4],[80,2,80,4],[80,6,80,8],[81,1,81,4],[81,5,81,8],[82,2,82,4],[82,6,82,8],[69,0,83,0],[87,6,87,8],[88,2,88,4],[88,6,88,8],[89,2,89,4],[89,6,89,8],[90,2,90,4],[90,6,90,8],[83,2,83,4],[83,6,83,8],[77,2,77,4],[77,6,77,8],[78,2,78,4],[78,6,78,8],[79,2,79,4],[79,6,79,8],[74,2,74,4],[74,6,74,8],[75,2,75,4],[75,6,75,8],[76,1,76,4],[76,5,76,8],[71,1,71,4],[71,5,71,8],[72,2,72,4],[72,6,72,8],[73,2,73,4],[73,6,73,8],[66,1,66,2],[66,4,66,5],[66,7,66,8],[68,1,68,4],[68,5,68,8],[69,2,69,4],[69,6,69,8],[70,2,70,4],[70,6,70,8],[61,0,62,0],[61,1,61,3],[61,4,62,8],[62,1,62,3],[65,1,65,2],[65,4,65,5],[65,7,65,8],[52,1,52,2],[52,6,52,8],[53,1,53,2],[53,6,53,8],[58,0,59,0],[58,7,58,8],[59,7,59,8],[49,1,49,2],[49,6,49,8],[50,1,50,2],[50,6,50,8],[51,1,51,2],[51,6,51,8],[46,1,46,2],[46,6,46,8],[47,1,47,2],[47,6,47,8],[48,1,48,2],[48,6,48,8],[42,1,42,2],[42,6,42,8],[43,6,43,8],[44,1,44,2],[44,6,44,8],[45,1,45,2],[45,6,45,8],[38,1,38,4],[38,5,38,8],[39,2,39,4],[39,6,39,8],[40,2,40,4],[40,6,40,8],[35,6,35,8],[36,2,36,4],[36,6,36,8],[37,2,37,4],[37,6,37,8],[32,2,32,4],[32,6,32,8],[33,1,33,4],[33,5,33,8],[34,2,34,4],[34,6,34,8],[26,0,40,0],[26,2,26,4],[26,6,26,8],[27,2,27,4],[27,6,27,8],[28,1,28,4],[21,2,21,4],[21,6,21,8],[22,2,22,4],[22,6,22,8],[23,1,23,4],[23,5,23,8],[28,5,28,8],[29,2,29,4],[29,6,29,8],[30,2,30,4],[30,6,30,8],[31,2,31,4],[31,6,31,8],[24,2,24,4],[24,6,24,8],[25,2,25,4],[25,6,25,8],[35,2,35,4],[10,1,10,4],[10,5,10,8],[11,0,25,0],[11,2,11,4],[11,6,11,8],[12,2,12,4],[12,6,12,8],[13,1,13,4],[13,5,13,8],[14,2,14,4],[18,1,18,4],[18,5,18,8],[19,2,19,4],[19,6,19,8],[20,2,20,4],[20,6,20,8],[14,6,14,8],[15,2,15,4],[15,6,15,8],[16,2,16,4],[16,6,16,8],[17,2,17,4],[17,6,17,8],[7,1,7,2],[7,4,7,5],[7,7,7,8],[8,1,8,2],[8,4,8,5],[8,7,8,8],[0,7,0,8],[1,7,1,8],[3,0,4,0],[3,1,3,3],[3,4,4,8],[4,1,4,3]]}
[null,null,null,null,null,null,"【受任日】"]
[{"$f":"INDEX(事件[依頼人立場],MATCH(事件メモ事件番号,事件[事件番号],0))","v":{"$error":"#N/A"}},null,null,null,null,null,"【提起日】"]
[{"$f":"INDEX(事件[データフォルダ],MATCH(事件メモ事件番号,事件[事件番号],0))","v":{"$error":"#N/A"}}]
["【事件名】",{"$f":"INDEX(事件[裁判所名],MATCH(事件メモ事件番号,事件[事件番号],0))","v":{"$error":"#N/A"}},null,null,{"$f":"INDEX(事件[事件名],MATCH(事件メモ事件番号,事件[事件番号],0))","v":{"$error":"#N/A"}}]
[null,{"$f":"INDEX(事件[裁判所事件番号],MATCH(事件メモ事件番号,事件[事件番号],0))","v":{"$error":"#N/A"}}]
[]
["（管轄裁判所）",null,{"$f":"B4","v":{"$error":"#N/A"}}]
["（裁判官）",null,null,"（書記官）"]
["【ＴＥＬ】",null,null,"【ＦＡＸ】"]
[]
[null,{"$f":"\"依頼者（\"&事件メモ依頼人立場&\"）\"","v":{"$error":"#N/A"}},null,null,null,{"$f":"\"相手方\"\n&IF(INDEX(事件[依頼人立場],MATCH(事件メモ事件番号,事件[事件番号],0))=\"原告\",\"（被告）\",\nIF(INDEX(事件[依頼人立場],MATCH(事件メモ事件番号,事件[事件番号],0))=\"被告\",\"（原告）\",\nIF(INDEX(事件[依頼人立場],MATCH(事件メモ事件番号,事件[事件番号],0))=\"申立人\",\"（相手方）\",\nIF(INDEX(事件[依頼人立場],MATCH(事件メモ事件番号,事件[事件番号],0))=\"相手方\",\"（申立人）\",\n))))","v":{"$error":"#N/A"}}]
["当事者","【氏　名】",{"$f":"FncSplit(INDEX(事件[依頼者氏名],MATCH(事件メモ事件番号,事件[事件番号],0)),CHAR(10),1)","v":{"$error":"#VALUE!"}},null,null,"【氏　名】",{"$f":"FncSplit(INDEX(事件[相手方氏名],MATCH(事件メモ事件番号,事件[事件番号],0)),CHAR(10),1)","v":{"$error":"#VALUE!"}}]
[null,"【住　所】",{"$f":"LEFT(FncSplit(INDEX(事件[住所],MATCH(事件メモ事件番号,事件[事件番号],0)),CHAR(10),1),8)","v":{"$error":"#VALUE!"}},null,null,"【住　所】",{"$f":"LEFT(FncSplit(INDEX(事件[相手方住所],MATCH(事件メモ事件番号,事件[事件番号],0)),CHAR(10),1),8)","v":{"$error":"#VALUE!"}}]
[null,{"$f":"MID(FncSplit(INDEX(事件[住所],MATCH(事件メモ事件番号,事件[事件番号],0)),CHAR(10),1),9,LEN(FncSplit(INDEX(事件[住所],MATCH(事件メモ事件番号,事件[事件番号],0)),CHAR(10),1)))","v":{"$error":"#VALUE!"}},null,null,null,{"$f":"MID(FncSplit(INDEX(事件[相手方住所],MATCH(事件メモ事件番号,事件[事件番号],0)),CHAR(10),1),9,LEN(FncSplit(INDEX(事件[住所],MATCH(事件メモ事件番号,事件[事件番号],0)),CHAR(10),1)))","v":{"$error":"#VALUE!"}}]
[null,"【電　話】",{"$f":"FncSplit(INDEX(事件[電話番号],MATCH(事件メモ事件番号,事件[事件番号],0)),CHAR(10),1)","v":{"$error":"#VALUE!"}},null,null,"【電　話】",{"$f":"FncSplit(INDEX(事件[相手方電話番号],MATCH(事件メモ事件番号,事件[事件番号],0)),CHAR(10),1)","v":{"$error":"#VALUE!"}}]
[null,"【ＦＡＸ】",null,null,null,"【ＦＡＸ】"]
[null,"【氏　名】",{"$f":"FncSplit(INDEX(事件[依頼者氏名],MATCH(事件メモ事件番号,事件[事件番号],0)),CHAR(10),2)","v":{"$error":"#VALUE!"}},null,null,"【氏　名】",{"$f":"FncSplit(INDEX(事件[相手方氏名],MATCH(事件メモ事件番号,事件[事件番号],0)),CHAR(10),2)","v":{"$error":"#VALUE!"}}]
[null,"【住　所】",{"$f":"LEFT(FncSplit(INDEX(事件[住所],MATCH(事件メモ事件番号,事件[事件番号],0)),CHAR(10),2),8)","v":{"$error":"#VALUE!"}},null,null,"【住　所】",{"$f":"LEFT(FncSplit(INDEX(事件[相手方住所],MATCH(事件メモ事件番号,事件[事件番号],0)),CHAR(10),2),8)","v":{"$error":"#VALUE!"}}]
[null,{"$f":"MID(FncSplit(INDEX(事件[住所],MATCH(事件メモ事件番号,事件[事件番号],0)),CHAR(10),2),9,LEN(FncSplit(INDEX(事件[住所],MATCH(事件メモ事件番号,事件[事件番号],0)),CHAR(10),2)))","v":{"$error":"#VALUE!"}},null,null,null,{"$f":"MID(FncSplit(INDEX(事件[相手方住所],MATCH(事件メモ事件番号,事件[事件番号],0)),CHAR(10),2),9,LEN(FncSplit(INDEX(事件[相手方住所],MATCH(事件メモ事件番号,事件[事件番号],0)),CHAR(10),2)))","v":{"$error":"#VALUE!"}}]
[null,"【電　話】",{"$f":"FncSplit(INDEX(事件[電話番号],MATCH(事件メモ事件番号,事件[事件番号],0)),CHAR(10),2)","v":{"$error":"#VALUE!"}},null,null,"【電　話】",{"$f":"FncSplit(INDEX(事件[相手方電話番号],MATCH(事件メモ事件番号,事件[事件番号],0)),CHAR(10),2)","v":{"$error":"#VALUE!"}}]
[null,"【ＦＡＸ】",null,null,null,"【ＦＡＸ】"]
[null,"【氏　名】",{"$f":"FncSplit(INDEX(事件[依頼者氏名],MATCH(事件メモ事件番号,事件[事件番号],0)),CHAR(10),3)","v":{"$error":"#VALUE!"}},null,null,"【氏　名】",{"$f":"FncSplit(INDEX(事件[相手方氏名],MATCH(事件メモ事件番号,事件[事件番号],0)),CHAR(10),3)","v":{"$error":"#VALUE!"}}]
[null,"【住　所】",{"$f":"LEFT(FncSplit(INDEX(事件[住所],MATCH(事件メモ事件番号,事件[事件番号],0)),CHAR(10),3),8)","v":{"$error":"#VALUE!"}},null,null,"【住　所】",{"$f":"LEFT(FncSplit(INDEX(事件[相手方住所],MATCH(事件メモ事件番号,事件[事件番号],0)),CHAR(10),3),8)","v":{"$error":"#VALUE!"}}]
[null,{"$f":"MID(FncSplit(INDEX(事件[住所],MATCH(事件メモ事件番号,事件[事件番号],0)),CHAR(10),3),9,LEN(FncSplit(INDEX(事件[住所],MATCH(事件メモ事件番号,事件[事件番号],0)),CHAR(10),3)))","v":{"$error":"#VALUE!"}},null,null,null,{"$f":"MID(FncSplit(INDEX(事件[相手方住所],MATCH(事件メモ事件番号,事件[事件番号],0)),CHAR(10),3),9,LEN(FncSplit(INDEX(事件[相手方住所],MATCH(事件メモ事件番号,事件[事件番号],0)),CHAR(10),3)))","v":{"$error":"#VALUE!"}}]
[null,"【電　話】",{"$f":"FncSplit(INDEX(事件[電話番号],MATCH(事件メモ事件番号,事件[事件番号],0)),CHAR(10),3)","v":{"$error":"#VALUE!"}},null,null,"【電　話】",{"$f":"FncSplit(INDEX(事件[相手方電話番号],MATCH(事件メモ事件番号,事件[事件番号],0)),CHAR(10),3)","v":{"$error":"#VALUE!"}}]
[null,"【ＦＡＸ】",null,null,null,"【ＦＡＸ】"]
["代理人","【弁護士】",{"$f":"IF(事件メモ依頼人立場=\"破産者\",FncSplit(INDEX(事件[代理人],MATCH(事件メモ事件番号,事件[事件番号],0)),CHAR(10),1),\nINDEX(担当区分詳細[#Data],MATCH(INDEX(事件[担当区分],MATCH(事件メモ事件番号,事件[事件番号],0)),担当区分[#Data],0)))","v":{"$error":"#N/A"}},null,null,"【弁護士】",{"$f":"IF(事件メモ依頼人立場=\"破産者\",\"\",\nFncSplit(INDEX(事件[代理人],MATCH(事件メモ事件番号,事件[事件番号],0)),CHAR(10),1))","v":{"$error":"#N/A"}}]
[null,"【住　所】",{"$f":"IF(事件メモ依頼人立場=\"破産者\",LEFT(FncSplit(INDEX(事件[代理人住所],MATCH(事件メモ事件番号,事件[事件番号],0)),CHAR(10),1),8),\n\"\")","v":{"$error":"#N/A"}},null,null,"【住　所】",{"$f":"IF(事件メモ依頼人立場=\"破産者\",\"\",\nLEFT(FncSplit(INDEX(事件[代理人住所],MATCH(事件メモ事件番号,事件[事件番号],0)),CHAR(10),1),8))","v":{"$error":"#N/A"}}]
[null,{"$f":"IF(事件メモ依頼人立場=\"破産者\",MID(FncSplit(INDEX(事件[代理人住所],MATCH(事件メモ事件番号,事件[事件番号],0)),CHAR(10),1),9,LEN(FncSplit(INDEX(事件[代理人住所],MATCH(事件メモ事件番号,事件[事件番号],0)),CHAR(10),1))),\n\"\")","v":{"$error":"#N/A"}},null,null,null,{"$f":"IF(事件メモ依頼人立場=\"破産者\",\"\",\nMID(FncSplit(INDEX(事件[代理人住所],MATCH(事件メモ事件番号,事件[事件番号],0)),CHAR(10),1),9,LEN(FncSplit(INDEX(事件[代理人住所],MATCH(事件メモ事件番号,事件[事件番号],0)),CHAR(10),1))))","v":{"$error":"#N/A"}}]
[null,"【電　話】",{"$f":"IF(事件メモ依頼人立場=\"破産者\",FncSplit(INDEX(事件[代理人電話番号],MATCH(事件メモ事件番号,事件[事件番号],0)),CHAR(10),1),\n\"\")","v":{"$error":"#N/A"}},null,null,"【電　話】",{"$f":"IF(事件メモ依頼人立場=\"破産者\",\"\",\nFncSplit(INDEX(事件[代理人電話番号],MATCH(事件メモ事件番号,事件[事件番号],0)),CHAR(10),1))","v":{"$error":"#N/A"}}]
[null,"【ＦＡＸ】",{"$f":"IF(事件メモ依頼人立場=\"破産者\",FncSplit(INDEX(事件[代理人FAX番号],MATCH(事件メモ事件番号,事件[事件番号],0)),CHAR(10),1),\n\"\")","v":{"$error":"#N/A"}},null,null,"【ＦＡＸ】",{"$f":"IF(事件メモ依頼人立場=\"破産者\",\"\",\nFncSplit(INDEX(事件[代理人FAX番号],MATCH(事件メモ事件番号,事件[事件番号],0)),CHAR(10),1))","v":{"$error":"#N/A"}}]
[null,"【弁護士】",{"$f":"IF(事件メモ依頼人立場=\"破産者\",FncSplit(INDEX(事件[代理人],MATCH(事件メモ事件番号,事件[事件番号],0)),CHAR(10),2),\n\"\")","v":{"$error":"#N/A"}},null,null,"【弁護士】",{"$f":"IF(事件メモ依頼人立場=\"破産者\",\"\",\nFncSplit(INDEX(事件[代理人],MATCH(事件メモ事件番号,事件[事件番号],0)),CHAR(10),2))","v":{"$error":"#N/A"}}]
[null,"【住　所】",{"$f":"IF(事件メモ依頼人立場=\"破産者\",LEFT(FncSplit(INDEX(事件[代理人住所],MATCH(事件メモ事件番号,事件[事件番号],0)),CHAR(10),2),8),\n\"\")","v":{"$error":"#N/A"}},null,null,"【住　所】",{"$f":"IF(事件メモ依頼人立場=\"破産者\",\"\",\nLEFT(FncSplit(INDEX(事件[代理人住所],MATCH(事件メモ事件番号,事件[事件番号],0)),CHAR(10),2),8))","v":{"$error":"#N/A"}}]
[null,{"$f":"IF(事件メモ依頼人立場=\"破産者\",MID(FncSplit(INDEX(事件[代理人住所],MATCH(事件メモ事件番号,事件[事件番号],0)),CHAR(10),2),9,LEN(FncSplit(INDEX(事件[代理人住所],MATCH(事件メモ事件番号,事件[事件番号],0)),CHAR(10),2))),\n\"\")","v":{"$error":"#N/A"}},null,null,null,{"$f":"IF(事件メモ依頼人立場=\"破産者\",\"\",\nMID(FncSplit(INDEX(事件[代理人住所],MATCH(事件メモ事件番号,事件[事件番号],0)),CHAR(10),2),9,LEN(FncSplit(INDEX(事件[代理人住所],MATCH(事件メモ事件番号,事件[事件番号],0)),CHAR(10),2))))","v":{"$error":"#N/A"}}]
[null,"【電　話】",{"$f":"IF(事件メモ依頼人立場=\"破産者\",FncSplit(INDEX(事件[代理人電話番号],MATCH(事件メモ事件番号,事件[事件番号],0)),CHAR(10),2),\n\"\")","v":{"$error":"#N/A"}},null,null,"【電　話】",{"$f":"IF(事件メモ依頼人立場=\"破産者\",\"\",\nFncSplit(INDEX(事件[代理人電話番号],MATCH(事件メモ事件番号,事件[事件番号],0)),CHAR(10),2))","v":{"$error":"#N/A"}}]
[null,"【ＦＡＸ】",{"$f":"IF(事件メモ依頼人立場=\"破産者\",FncSplit(INDEX(事件[代理人FAX番号],MATCH(事件メモ事件番号,事件[事件番号],0)),CHAR(10),2),\n\"\")","v":{"$error":"#N/A"}},null,null,"【ＦＡＸ】",{"$f":"IF(事件メモ依頼人立場=\"破産者\",\"\",\nFncSplit(INDEX(事件[代理人FAX番号],MATCH(事件メモ事件番号,事件[事件番号],0)),CHAR(10),2))","v":{"$error":"#N/A"}}]
[null,"【弁護士】",{"$f":"IF(事件メモ依頼人立場=\"破産者\",FncSplit(INDEX(事件[代理人],MATCH(事件メモ事件番号,事件[事件番号],0)),CHAR(10),3),\n\"\")","v":{"$error":"#N/A"}},null,null,"【弁護士】",{"$f":"IF(事件メモ依頼人立場=\"破産者\",\"\",\nFncSplit(INDEX(事件[代理人],MATCH(事件メモ事件番号,事件[事件番号],0)),CHAR(10),3))","v":{"$error":"#N/A"}}]
[null,"【住　所】",{"$f":"IF(事件メモ依頼人立場=\"破産者\",LEFT(FncSplit(INDEX(事件[代理人住所],MATCH(事件メモ事件番号,事件[事件番号],0)),CHAR(10),3),8),\n\"\")","v":{"$error":"#N/A"}},null,null,"【住　所】",{"$f":"IF(事件メモ依頼人立場=\"破産者\",\"\",\nLEFT(FncSplit(INDEX(事件[代理人住所],MATCH(事件メモ事件番号,事件[事件番号],0)),CHAR(10),3),8))","v":{"$error":"#N/A"}}]
[null,{"$f":"IF(事件メモ依頼人立場=\"破産者\",MID(FncSplit(INDEX(事件[代理人住所],MATCH(事件メモ事件番号,事件[事件番号],0)),CHAR(10),3),9,LEN(FncSplit(INDEX(事件[代理人住所],MATCH(事件メモ事件番号,事件[事件番号],0)),CHAR(10),3))),\n\"\")","v":{"$error":"#N/A"}},null,null,null,{"$f":"IF(事件メモ依頼人立場=\"破産者\",\"\",\nMID(FncSplit(INDEX(事件[代理人住所],MATCH(事件メモ事件番号,事件[事件番号],0)),CHAR(10),3),9,LEN(FncSplit(INDEX(事件[代理人住所],MATCH(事件メモ事件番号,事件[事件番号],0)),CHAR(10),3))))","v":{"$error":"#N/A"}}]
[null,"【電　話】",{"$f":"IF(事件メモ依頼人立場=\"破産者\",FncSplit(INDEX(事件[代理人電話番号],MATCH(事件メモ事件番号,事件[事件番号],0)),CHAR(10),3),\n\"\")","v":{"$error":"#N/A"}},null,null,"【電　話】",{"$f":"IF(事件メモ依頼人立場=\"破産者\",\"\",\nFncSplit(INDEX(事件[代理人電話番号],MATCH(事件メモ事件番号,事件[事件番号],0)),CHAR(10),3))","v":{"$error":"#N/A"}}]
[null,"【ＦＡＸ】",{"$f":"IF(事件メモ依頼人立場=\"破産者\",FncSplit(INDEX(事件[代理人FAX番号],MATCH(事件メモ事件番号,事件[事件番号],0)),CHAR(10),3),\n\"\")","v":{"$error":"#N/A"}},null,null,"【ＦＡＸ】",{"$f":"IF(事件メモ依頼人立場=\"破産者\",\"\",\nFncSplit(INDEX(事件[代理人FAX番号],MATCH(事件メモ事件番号,事件[事件番号],0)),CHAR(10),3))","v":{"$error":"#N/A"}}]
[]
[null,"期日",null,null,"予定　","結果","経過報告書送付日"]
["第１回","　　年　　月　　日",null,"　時　分",null,null,"　　月　日　郵　手渡し　T　F"]
["第２回","　　年　　月　　日",null,"　時　分",null,null,"　　月　日　郵　手渡し　T　F"]
["第３回","　　年　　月　　日",null,"　時　分",null,null,"　　月　日　郵　手渡し　T　F"]
["第４回","　　年　　月　　日",null,"　時　分",null,null,"　　月　日　郵　手渡し　T　F"]
["第５回","　　年　　月　　日",null,"　時　分",null,null,"　　月　日　郵　手渡し　T　F"]
["第６回","　　年　　月　　日",null,"　時　分",null,null,"　　月　日　郵　手渡し　T　F"]
["第７回","　　年　　月　　日",null,"　時　分",null,null,"　　月　日　郵　手渡し　T　F"]
["第８回","　　年　　月　　日",null,"　時　分",null,null,"　　月　日　郵　手渡し　T　F"]
["第９回","　　年　　月　　日",null,"　時　分",null,null,"　　月　日　郵　手渡し　T　F"]
["第１０回","　　年　　月　　日",null,"　時　分",null,null,"　　月　日　郵　手渡し　T　F"]
["第１１回","　　年　　月　　日",null,"　時　分",null,null,"　　月　日　郵　手渡し　T　F"]
[]
["書証","甲　　　　冊",null,"調書　　　　　冊",null,"関係書類　　　　　　　袋"]
[null,"乙　　　　冊",null,null,null,"　　　　　　　　　　　冊"]
[]
["【続き】",null,null,null,null,null,"【受任日】"]
[null,null,null,null,null,null,"【提起日】"]
["O:\\事件\\個人一般\\い：入江麻衣子(宮本)"]
["【事件名】"]
[]
[]
["（管轄裁判所）",null,{"$f":"B62","v":0}]
["（裁判官）",null,null,"（書記官）"]
["【ＴＥＬ】",null,null,"【ＦＡＸ】"]
[]
[null,{"$f":"\"依頼者（\"&事件メモ依頼人立場&\"）\"","v":{"$error":"#N/A"}},null,null,null,"相手方"]
["当事者","【氏　名】",{"$f":"FncSplit(INDEX(事件[依頼者氏名],MATCH(事件メモ事件番号,事件[事件番号],0)),CHAR(10),4)","v":{"$error":"#VALUE!"}},null,null,"【氏　名】",{"$f":"FncSplit(INDEX(事件[相手方氏名],MATCH(事件メモ事件番号,事件[事件番号],0)),CHAR(10),4)","v":{"$error":"#VALUE!"}}]
[null,"【住　所】",{"$f":"LEFT(FncSplit(INDEX(事件[住所],MATCH(事件メモ事件番号,事件[事件番号],0)),CHAR(10),4),8)","v":{"$error":"#VALUE!"}},null,null,"【住　所】",{"$f":"LEFT(FncSplit(INDEX(事件[相手方住所],MATCH(事件メモ事件番号,事件[事件番号],0)),CHAR(10),4),8)","v":{"$error":"#VALUE!"}}]
[null,{"$f":"MID(FncSplit(INDEX(事件[住所],MATCH(事件メモ事件番号,事件[事件番号],0)),CHAR(10),4),9,LEN(FncSplit(INDEX(事件[住所],MATCH(事件メモ事件番号,事件[事件番号],0)),CHAR(10),4)))","v":{"$error":"#VALUE!"}},null,null,null,{"$f":"MID(FncSplit(INDEX(事件[相手方住所],MATCH(事件メモ事件番号,事件[事件番号],0)),CHAR(10),4),9,LEN(FncSplit(INDEX(事件[相手方住所],MATCH(事件メモ事件番号,事件[事件番号],0)),CHAR(10),4)))","v":{"$error":"#VALUE!"}}]
[null,"【電　話】",{"$f":"FncSplit(INDEX(事件[電話番号],MATCH(事件メモ事件番号,事件[事件番号],0)),CHAR(10),4)","v":{"$error":"#VALUE!"}},null,null,"【電　話】",{"$f":"FncSplit(INDEX(事件[相手方電話番号],MATCH(事件メモ事件番号,事件[事件番号],0)),CHAR(10),4)","v":{"$error":"#VALUE!"}}]
[null,"【ＦＡＸ】",null,null,null,"【ＦＡＸ】"]
[null,"【氏　名】",{"$f":"FncSplit(INDEX(事件[依頼者氏名],MATCH(事件メモ事件番号,事件[事件番号],0)),CHAR(10),5)","v":{"$error":"#VALUE!"}},null,null,"【氏　名】",{"$f":"FncSplit(INDEX(事件[相手方氏名],MATCH(事件メモ事件番号,事件[事件番号],0)),CHAR(10),5)","v":{"$error":"#VALUE!"}}]
[null,"【住　所】",{"$f":"LEFT(FncSplit(INDEX(事件[住所],MATCH(事件メモ事件番号,事件[事件番号],0)),CHAR(10),5),8)","v":{"$error":"#VALUE!"}},null,null,"【住　所】",{"$f":"LEFT(FncSplit(INDEX(事件[相手方住所],MATCH(事件メモ事件番号,事件[事件番号],0)),CHAR(10),5),8)","v":{"$error":"#VALUE!"}}]
[null,{"$f":"MID(FncSplit(INDEX(事件[住所],MATCH(事件メモ事件番号,事件[事件番号],0)),CHAR(10),5),9,LEN(FncSplit(INDEX(事件[住所],MATCH(事件メモ事件番号,事件[事件番号],0)),CHAR(10),5)))","v":{"$error":"#VALUE!"}},null,null,null,{"$f":"MID(FncSplit(INDEX(事件[相手方住所],MATCH(事件メモ事件番号,事件[事件番号],0)),CHAR(10),5),9,LEN(FncSplit(INDEX(事件[相手方住所],MATCH(事件メモ事件番号,事件[事件番号],0)),CHAR(10),5)))","v":{"$error":"#VALUE!"}}]
[null,"【電　話】",{"$f":"FncSplit(INDEX(事件[電話番号],MATCH(事件メモ事件番号,事件[事件番号],0)),CHAR(10),5)","v":{"$error":"#VALUE!"}},null,null,"【電　話】",{"$f":"FncSplit(INDEX(事件[相手方電話番号],MATCH(事件メモ事件番号,事件[事件番号],0)),CHAR(10),5)","v":{"$error":"#VALUE!"}}]
[null,"【ＦＡＸ】",null,null,null,"【ＦＡＸ】"]
[null,"【氏　名】",{"$f":"FncSplit(INDEX(事件[依頼者氏名],MATCH(事件メモ事件番号,事件[事件番号],0)),CHAR(10),6)","v":{"$error":"#VALUE!"}},null,null,"【氏　名】",{"$f":"FncSplit(INDEX(事件[相手方氏名],MATCH(事件メモ事件番号,事件[事件番号],0)),CHAR(10),6)","v":{"$error":"#VALUE!"}}]
[null,"【住　所】",{"$f":"LEFT(FncSplit(INDEX(事件[住所],MATCH(事件メモ事件番号,事件[事件番号],0)),CHAR(10),6),8)","v":{"$error":"#VALUE!"}},null,null,"【住　所】",{"$f":"LEFT(FncSplit(INDEX(事件[相手方住所],MATCH(事件メモ事件番号,事件[事件番号],0)),CHAR(10),6),8)","v":{"$error":"#VALUE!"}}]
[null,{"$f":"MID(FncSplit(INDEX(事件[住所],MATCH(事件メモ事件番号,事件[事件番号],0)),CHAR(10),6),9,LEN(FncSplit(INDEX(事件[住所],MATCH(事件メモ事件番号,事件[事件番号],0)),CHAR(10),6)))","v":{"$error":"#VALUE!"}},null,null,null,{"$f":"MID(FncSplit(INDEX(事件[相手方住所],MATCH(事件メモ事件番号,事件[事件番号],0)),CHAR(10),6),9,LEN(FncSplit(INDEX(事件[住所],MATCH(事件メモ事件番号,事件[事件番号],0)),CHAR(10),6)))","v":{"$error":"#VALUE!"}}]
[null,"【電　話】",{"$f":"FncSplit(INDEX(事件[電話番号],MATCH(事件メモ事件番号,事件[事件番号],0)),CHAR(10),6)","v":{"$error":"#VALUE!"}},null,null,"【電　話】",{"$f":"FncSplit(INDEX(事件[相手方電話番号],MATCH(事件メモ事件番号,事件[事件番号],0)),CHAR(10),6)","v":{"$error":"#VALUE!"}}]
[null,"【ＦＡＸ】",null,null,null,"【ＦＡＸ】"]
["代理人","【弁護士】",{"$f":"IF(事件メモ依頼人立場=\"破産者\",FncSplit(INDEX(事件[代理人],MATCH(事件メモ事件番号,事件[事件番号],0)),CHAR(10),4),\n\"\")","v":{"$error":"#N/A"}},null,null,"【弁護士】",{"$f":"IF(事件メモ依頼人立場=\"破産者\",\"\",\nFncSplit(INDEX(事件[代理人],MATCH(事件メモ事件番号,事件[事件番号],0)),CHAR(10),4))","v":{"$error":"#N/A"}}]
[null,"【住　所】",{"$f":"IF(事件メモ依頼人立場=\"破産者\",LEFT(FncSplit(INDEX(事件[代理人住所],MATCH(事件メモ事件番号,事件[事件番号],0)),CHAR(10),4),8),\n\"\")","v":{"$error":"#N/A"}},null,null,"【住　所】",{"$f":"IF(事件メモ依頼人立場=\"破産者\",\"\",\nLEFT(FncSplit(INDEX(事件[代理人住所],MATCH(事件メモ事件番号,事件[事件番号],0)),CHAR(10),4),8))","v":{"$error":"#N/A"}}]
[null,{"$f":"IF(事件メモ依頼人立場=\"破産者\",MID(FncSplit(INDEX(事件[代理人住所],MATCH(事件メモ事件番号,事件[事件番号],0)),CHAR(10),4),9,LEN(FncSplit(INDEX(事件[代理人住所],MATCH(事件メモ事件番号,事件[事件番号],0)),CHAR(10),4))),\n\"\")","v":{"$error":"#N/A"}},null,null,null,{"$f":"IF(事件メモ依頼人立場=\"破産者\",\"\",\nMID(FncSplit(INDEX(事件[代理人住所],MATCH(事件メモ事件番号,事件[事件番号],0)),CHAR(10),4),9,LEN(FncSplit(INDEX(事件[代理人住所],MATCH(事件メモ事件番号,事件[事件番号],0)),CHAR(10),4))))","v":{"$error":"#N/A"}}]
[null,"【電　話】",{"$f":"IF(事件メモ依頼人立場=\"破産者\",FncSplit(INDEX(事件[代理人電話番号],MATCH(事件メモ事件番号,事件[事件番号],0)),CHAR(10),4),\n\"\")","v":{"$error":"#N/A"}},null,null,"【電　話】",{"$f":"IF(事件メモ依頼人立場=\"破産者\",\"\",\nFncSplit(INDEX(事件[代理人電話番号],MATCH(事件メモ事件番号,事件[事件番号],0)),CHAR(10),4))","v":{"$error":"#N/A"}}]
[null,"【ＦＡＸ】",{"$f":"IF(事件メモ依頼人立場=\"破産者\",FncSplit(INDEX(事件[代理人FAX番号],MATCH(事件メモ事件番号,事件[事件番号],0)),CHAR(10),4),\n\"\")","v":{"$error":"#N/A"}},null,null,"【ＦＡＸ】",{"$f":"IF(事件メモ依頼人立場=\"破産者\",\"\",\nFncSplit(INDEX(事件[代理人FAX番号],MATCH(事件メモ事件番号,事件[事件番号],0)),CHAR(10),4))","v":{"$error":"#N/A"}}]
[null,"【弁護士】",{"$f":"IF(事件メモ依頼人立場=\"破産者\",FncSplit(INDEX(事件[代理人],MATCH(事件メモ事件番号,事件[事件番号],0)),CHAR(10),5),\n\"\")","v":{"$error":"#N/A"}},null,null,"【弁護士】",{"$f":"IF(事件メモ依頼人立場=\"破産者\",\"\",\nFncSplit(INDEX(事件[代理人],MATCH(事件メモ事件番号,事件[事件番号],0)),CHAR(10),5))","v":{"$error":"#N/A"}}]
[null,"【住　所】",{"$f":"IF(事件メモ依頼人立場=\"破産者\",LEFT(FncSplit(INDEX(事件[代理人住所],MATCH(事件メモ事件番号,事件[事件番号],0)),CHAR(10),5),8),\n\"\")","v":{"$error":"#N/A"}},null,null,"【住　所】",{"$f":"IF(事件メモ依頼人立場=\"破産者\",\"\",\nLEFT(FncSplit(INDEX(事件[代理人住所],MATCH(事件メモ事件番号,事件[事件番号],0)),CHAR(10),5),8))","v":{"$error":"#N/A"}}]
[null,{"$f":"IF(事件メモ依頼人立場=\"破産者\",MID(FncSplit(INDEX(事件[代理人住所],MATCH(事件メモ事件番号,事件[事件番号],0)),CHAR(10),5),9,LEN(FncSplit(INDEX(事件[代理人住所],MATCH(事件メモ事件番号,事件[事件番号],0)),CHAR(10),5))),\n\"\")","v":{"$error":"#N/A"}},null,null,null,{"$f":"IF(事件メモ依頼人立場=\"破産者\",\"\",\nMID(FncSplit(INDEX(事件[代理人住所],MATCH(事件メモ事件番号,事件[事件番号],0)),CHAR(10),5),9,LEN(FncSplit(INDEX(事件[代理人住所],MATCH(事件メモ事件番号,事件[事件番号],0)),CHAR(10),5))))","v":{"$error":"#N/A"}}]
[null,"【電　話】",{"$f":"IF(事件メモ依頼人立場=\"破産者\",FncSplit(INDEX(事件[代理人電話番号],MATCH(事件メモ事件番号,事件[事件番号],0)),CHAR(10),5),\n\"\")","v":{"$error":"#N/A"}},null,null,"【電　話】",{"$f":"IF(事件メモ依頼人立場=\"破産者\",\"\",\nFncSplit(INDEX(事件[代理人電話番号],MATCH(事件メモ事件番号,事件[事件番号],0)),CHAR(10),5))","v":{"$error":"#N/A"}}]
[null,"【ＦＡＸ】",{"$f":"IF(事件メモ依頼人立場=\"破産者\",FncSplit(INDEX(事件[代理人FAX番号],MATCH(事件メモ事件番号,事件[事件番号],0)),CHAR(10),5),\n\"\")","v":{"$error":"#N/A"}},null,null,"【ＦＡＸ】",{"$f":"IF(事件メモ依頼人立場=\"破産者\",\"\",\nFncSplit(INDEX(事件[代理人FAX番号],MATCH(事件メモ事件番号,事件[事件番号],0)),CHAR(10),5))","v":{"$error":"#N/A"}}]
[null,"【弁護士】",{"$f":"IF(事件メモ依頼人立場=\"破産者\",FncSplit(INDEX(事件[代理人],MATCH(事件メモ事件番号,事件[事件番号],0)),CHAR(10),6),\n\"\")","v":{"$error":"#N/A"}},null,null,"【弁護士】",{"$f":"IF(事件メモ依頼人立場=\"破産者\",\"\",\nFncSplit(INDEX(事件[代理人],MATCH(事件メモ事件番号,事件[事件番号],0)),CHAR(10),6))","v":{"$error":"#N/A"}}]
[null,"【住　所】",{"$f":"IF(事件メモ依頼人立場=\"破産者\",LEFT(FncSplit(INDEX(事件[代理人住所],MATCH(事件メモ事件番号,事件[事件番号],0)),CHAR(10),6),8),\n\"\")","v":{"$error":"#N/A"}},null,null,"【住　所】",{"$f":"IF(事件メモ依頼人立場=\"破産者\",\"\",\nLEFT(FncSplit(INDEX(事件[代理人住所],MATCH(事件メモ事件番号,事件[事件番号],0)),CHAR(10),6),8))","v":{"$error":"#N/A"}}]
[null,{"$f":"IF(事件メモ依頼人立場=\"破産者\",MID(FncSplit(INDEX(事件[代理人住所],MATCH(事件メモ事件番号,事件[事件番号],0)),CHAR(10),6),9,LEN(FncSplit(INDEX(事件[代理人住所],MATCH(事件メモ事件番号,事件[事件番号],0)),CHAR(10),6))),\n\"\")","v":{"$error":"#N/A"}},null,null,null,{"$f":"IF(事件メモ依頼人立場=\"破産者\",\"\",\nMID(FncSplit(INDEX(事件[代理人住所],MATCH(事件メモ事件番号,事件[事件番号],0)),CHAR(10),6),9,LEN(FncSplit(INDEX(事件[代理人住所],MATCH(事件メモ事件番号,事件[事件番号],0)),CHAR(10),6))))","v":{"$error":"#N/A"}}]
[null,"【電　話】",{"$f":"IF(事件メモ依頼人立場=\"破産者\",FncSplit(INDEX(事件[代理人電話番号],MATCH(事件メモ事件番号,事件[事件番号],0)),CHAR(10),6),\n\"\")","v":{"$error":"#N/A"}},null,null,"【電　話】",{"$f":"IF(事件メモ依頼人立場=\"破産者\",\"\",\nFncSplit(INDEX(事件[代理人電話番号],MATCH(事件メモ事件番号,事件[事件番号],0)),CHAR(10),6))","v":{"$error":"#N/A"}}]
[null,"【ＦＡＸ】",{"$f":"IF(事件メモ依頼人立場=\"破産者\",FncSplit(INDEX(事件[代理人FAX番号],MATCH(事件メモ事件番号,事件[事件番号],0)),CHAR(10),6),\n\"\")","v":{"$error":"#N/A"}},null,null,"【ＦＡＸ】",{"$f":"IF(事件メモ依頼人立場=\"破産者\",\"\",\nFncSplit(INDEX(事件[代理人FAX番号],MATCH(事件メモ事件番号,事件[事件番号],0)),CHAR(10),6))","v":{"$error":"#N/A"}}]
[]
[null,"期日",null,null,"予定　","結果","経過報告書送付日"]
["第１回","　　年　　月　　日",null,"　時　分",null,null,"　　月　日　郵　手渡し　T　F"]
["第２回","　　年　　月　　日",null,"　時　分",null,null,"　　月　日　郵　手渡し　T　F"]
["第３回","　　年　　月　　日",null,"　時　分",null,null,"　　月　日　郵　手渡し　T　F"]
["第４回","　　年　　月　　日",null,"　時　分",null,null,"　　月　日　郵　手渡し　T　F"]
["第５回","　　年　　月　　日",null,"　時　分",null,null,"　　月　日　郵　手渡し　T　F"]
["第６回","　　年　　月　　日",null,"　時　分",null,null,"　　月　日　郵　手渡し　T　F"]
["第７回","　　年　　月　　日",null,"　時　分",null,null,"　　月　日　郵　手渡し　T　F"]
["第８回","　　年　　月　　日",null,"　時　分",null,null,"　　月　日　郵　手渡し　T　F"]
["第９回","　　年　　月　　日",null,"　時　分",null,null,"　　月　日　郵　手渡し　T　F"]
["第１０回","　　年　　月　　日",null,"　時　分",null,null,"　　月　日　郵　手渡し　T　F"]
["第１１回","　　年　　月　　日",null,"　時　分",null,null,"　　月　日　郵　手渡し　T　F"]
[]
["書証","甲　　　　冊",null,"調書　　　　　冊",null,"関係書類　　　　　　　袋"]
[null,"乙　　　　冊",null,null,null,"　　　　　　　　　　　冊"]

{"sheet":"オプション","index":2,"n_rows":21,"n_cols":15,"rows_kept":21,"cut":false,"hidden":false,"merged":[]}
["事件データ"]
["設定",null,null,null,"リストアイテム"]
[null,"バックアップフォルダ",null,null,"事件シートの選択リストを設定してください。"]
[null,null,"このファイルのデータをバックアップするフォルダを設定します。バックアップを行わない場合は空欄にしてください。",null,null,"現況区分",null,"受任区分",null,"事件区分",null,"担当区分","担当区分詳細",null,"依頼人立場"]
[null,null,null,null,null,"A:未了",null,"A:事務所",null,"A:管財",null,"佐藤","佐藤先生",null,"原告"]
["コマンド",null,null,null,null,"B:精算管理",null,"B:個人(田中）",null,"B:個人一般",null,"田中","田中先生",null,"被告"]
[null,null,null,null,null,"C:終了",null,"C:個人(鈴木)",null,"C:個人債務",null,"鈴木","鈴木先生",null,"申立人"]
[null,"データフォルダ確認","実行",null,null,"D:相談のみ",null,null,null,"D:企業",null,"佐・田","佐藤先生・田中先生",null,"相手方"]
[null,null,"すべてのデータフォルダの存在を確認します。",null,null,"E:相談不可",null,null,null,"E:顧問",null,"佐・鈴","佐藤先生・鈴木先生",null,"債権者"]
[null,null,null,null,null,null,null,null,null,null,null,"佐・田・鈴","佐藤先生・田中先生・鈴木先生",null,"債務者"]
[null,"事件番号確認","実行",null,null,null,null,null,null,null,null,null,null,null,"控訴人"]
[null,null,"すべての事件番号の重複と空白を確認します。",null,null,null,null,null,null,null,null,null,null,null,"被控訴人"]
[null,null,null,null,null,null,null,null,null,null,null,null,null,null,"本人"]
[null,null,null,null,null,null,null,null,null,null,null,null,null,null,"被相続人"]
[null,null,null,null,null,null,null,null,null,null,null,null,null,null,"破産者"]
[null,null,null,null,null,null,null,null,null,null,null,null,null,null,"被保佐人"]
[null,null,null,null,null,null,null,null,null,null,null,null,null,null,"被後見人"]
[null,null,null,null,null,null,null,null,null,null,null,null,null,null,"審査請求人"]
[null,null,null,null,null,null,null,null,null,null,null,null,null,null,"請求者"]
[null,null,null,null,null,null,null,null,null,null,null,null,null,null,"申述人"]
[null,null,null,null,null,null,null,null,null,null,null,null,null,null,"被疑者"]

{"sheet":"フォルダ","index":3,"n_rows":13,"n_cols":5,"rows_kept":13,"cut":false,"hidden":false,"merged":[]}
["フォルダ構成"]
["データフォルダの構成を設定してください。（yyyy:終了年）"]
["現況","受任区分","事件区分","担当区分","フォルダ"]
["A:未了","A:事務所","B:個人一般",null,"D:\\事件\\010個人一般"]
["A:未了","A:事務所","C:個人債務",null,"D:\\事件\\020個人債務"]
["A:未了","A:事務所","D:企業",null,"D:\\事件\\030法人一般"]
["A:未了","A:事務所","K:法人債務",null,"D:\\事件\\040法人債務"]
["A:未了","A:事務所","A:管財",null,"D:\\事件\\050管財事件"]
["C:終了","A:事務所","B:個人一般",null,"E:\\終了事件\\個人一般\\yyyy"]
["C:終了","A:事務所","C:個人債務",null,"E:\\終了事件\\個人債務\\yyyy"]
["C:終了","A:事務所","D:企業",null,"E:\\終了事件\\法人一般\\yyyy"]
["C:終了","A:事務所","K:法人債務",null,"E:\\終了事件\\法人債務\\yyyy"]
["C:終了","A:事務所","A:管財",null,"E:\\終了事件\\管財事件\\yyyy"]

{"sheet":"マニュアル","index":4,"n_rows":26,"n_cols":4,"rows_kept":26,"cut":false,"hidden":false,"merged":[]}
["事件データベースの使用法"]
[]
[null,"事件シートの操作","「現況」、「受任区分」、「事件区分」、「担当区分」および「依頼人立場」は、リストから選択できます。元の値は、「オプション」シートに設定されています。（ワークシート機能）"]
[null,null,"並び替えの優先順は、「現況」「受任区分」「事件区分」「事件番号」に設定されています。"]
[null,null,"入力済みの「事件番号」をダブルクリックすると、事件を追加・削除できます。"]
[null,null,null,"追加の場合は、選択画面が表示されるので「はい」を選択すると新規依頼者として事件番号を自動入力します。"]
[null,null,null,"「いいえ」を選択するとダブルクリックしたセルと同一の依頼者として事件番号を自動入力します。"]
[null,null,"「現況」の値に応じて、その行の書式が自動的に設定されます。"]
[null,null,null,"「相談のみ」：文字色がグリーン"]
[null,null,null,"「終了」：文字色がグレー"]
[null,null,"「現況」を「C:終了」または「B:精算管理」に変更すると、データフォルダの移動処理が始まります。"]
[null,null,null,"事前にデータフォルダをZIPファイルに圧縮しておいてください。"]
[null,null,null,"移動先は、フォルダシートで設定してください。"]
[null,null,"「データフォルダ」の値をダブルクリックすると、フォルダを開きます（ハイパーリンクの設定は不要です）。"]
[]
[null,"事件メモの作成","シートを開くと、「事件」シートで選択されている行の「事件番号」に応じた事件メモが作成されます。"]
[null,null,"シートがアクティブの状態でブックを保存すると、各事件の「データフォルダ」に別ファイルとして保存できます。"]
[]
[null,"オプションの設定","バックアップフォルダを設定できます。バックアップを行わない場合は空欄にしてください。"]
[null,null,"データフォルダの確認および事件番号の確認が行えます。"]
[null,null,"「リストアイテム」の値を変更することで、リストの「元の値」を変更できます。"]
[]
[null,"VAブリッジの利用","アドインにVAブリッジをインストールすると、マスタファイルを利用した共同編集が可能です。"]
[null,null,"その場合、「事件」テーブルのデータは、マスタファイルから読み込みおよび書き込みが行われます。"]
[null,null,"ただし、このファイル自体は保存できなくなります。"]
[null,null,"オプションを設定する場合は、Shiftキーを押しながら起動させてください。"]